[Event "Live Chess"]
[Site "Chess.com"]
[Date "2023.09.16"]
[Round "-"]
[White "gustavogarcia10"]
[Black "MagnusCarlos1996"]
[Result "0-1"]
[WhiteElo "459"]
[BlackElo "788"]
[TimeControl "900+5"]
[EndTime "15:55:32 PDT"]
[Termination "MagnusCarlos1996 venceu por xeque-mate"]

1. e4 {[%clk 0:15:01.1]} 1... e5 {[%clk 0:15:04.2]} 2. Bb5 {[%clk 0:14:52.1]}
2... Nf6 {[%clk 0:14:52.7]} 3. d3 {[%clk 0:14:45.1]} 3... c6 {[%clk 0:14:55.1]}
4. Ba4 {[%clk 0:14:48.6]} 4... d6 {[%clk 0:14:58.2]} 5. Nf3 {[%clk 0:14:46]}
5... Be7 {[%clk 0:15:00.8]} 6. O-O {[%clk 0:14:44.9]} 6... Bg4 {[%clk
0:15:04.2]} 7. Re1 {[%clk 0:14:12.3]} 7... O-O {[%clk 0:15:04]} 8. h3 {[%clk
0:14:14.1]} 8... Bh5 {[%clk 0:15:07.4]} 9. Nc3 {[%clk 0:14:03]} 9... Nbd7 {[%clk
0:15:03]} 10. Bb3 {[%clk 0:14:01.8]} 10... b5 {[%clk 0:14:57.7]} 11. a4 {[%clk
0:13:34]} 11... b4 {[%clk 0:14:54.4]} 12. Na2 {[%clk 0:13:23.9]} 12... a5 {[%clk
0:14:57.6]} 13. Bg5 {[%clk 0:13:19.6]} 13... Nc5 {[%clk 0:14:55.3]} 14. Bxf6
{[%clk 0:13:17.7]} 14... Bxf6 {[%clk 0:14:57.2]} 15. Nc1 {[%clk 0:13:14.7]}
15... Nxb3 {[%clk 0:14:50.2]} 16. Nxb3 {[%clk 0:12:43.4]} 16... d5 {[%clk
0:14:52.2]} 17. Nc5 {[%clk 0:12:30.9]} 17... dxe4 {[%clk 0:14:40.8]} 18. Nb7
{[%clk 0:12:32.8]} 18... Qb6 {[%clk 0:14:08.3]} 19. g4 {[%clk 0:12:01.6]} 19...
exf3 {[%clk 0:14:02.9]} 20. Nd6 {[%clk 0:11:52]} 20... Bg6 {[%clk 0:13:56.8]}
21. Qxf3 {[%clk 0:11:53.1]} 21... e4 {[%clk 0:13:52.8]} 22. Nxe4 {[%clk
0:11:51.1]} 22... Bxe4 {[%clk 0:13:56.5]} 23. Qxe4 {[%clk 0:11:54.1]} 23... Bxb2
{[%clk 0:13:58.2]} 24. Rad1 {[%clk 0:11:46.9]} 24... Qc5 {[%clk 0:13:44.3]} 25.
Re2 {[%clk 0:11:44.8]} 25... Bc3 {[%clk 0:13:36.2]} 26. Qf5 {[%clk 0:11:23.2]}
26... Qxf5 {[%clk 0:13:38.4]} 27. gxf5 {[%clk 0:11:27.1]} 27... Rfe8 {[%clk
0:13:42.9]} 28. Rxe8+ {[%clk 0:11:30.1]} 28... Rxe8 {[%clk 0:13:47]} 29. d4
{[%clk 0:11:29.5]} 29... Re2 {[%clk 0:13:50.5]} 30. Kf1 {[%clk 0:11:17.3]} 30...
Rxc2 {[%clk 0:13:43.3]} 31. d5 {[%clk 0:11:00.3]} 31... cxd5 {[%clk 0:13:39.4]}
32. Rxd5 {[%clk 0:11:03.4]} 32... Kf8 {[%clk 0:13:36.1]} 33. Rxa5 {[%clk
0:11:06.5]} 33... b3 {[%clk 0:13:35.9]} 34. Ra8+ {[%clk 0:11:05.4]} 34... Ke7
{[%clk 0:13:39.6]} 35. Ra7+ {[%clk 0:11:07.9]} 35... Kf6 {[%clk 0:13:42.9]} 36.
a5 {[%clk 0:11:07.9]} 36... b2 {[%clk 0:13:45.5]} 37. Rb7 {[%clk 0:11:09.8]}
37... Rc1+ {[%clk 0:13:49.5]} 38. Ke2 {[%clk 0:11:12.5]} 38... b1=Q {[%clk
0:13:53.2]} 39. Rxb1 {[%clk 0:11:16]} 39... Rxb1 {[%clk 0:13:57.6]} 40. a6
{[%clk 0:11:19.9]} 40... Ra1 {[%clk 0:14:00.9]} 41. Kd3 {[%clk 0:11:23.1]} 41...
Be5 {[%clk 0:14:03.4]} 42. Ke4 {[%clk 0:11:16.9]} 42... Rxa6 {[%clk 0:14:05.9]}
43. f4 {[%clk 0:11:20.3]} 43... Bxf4 {[%clk 0:14:10.2]} 44. Kxf4 {[%clk
0:11:24.1]} 44... Ra4+ {[%clk 0:14:12]} 45. Kg3 {[%clk 0:11:27.2]} 45... Kxf5
{[%clk 0:14:16.4]} 46. Kf3 {[%clk 0:11:29.7]} 46... g5 {[%clk 0:14:20.1]} 47.
Kg3 {[%clk 0:11:34]} 47... h5 {[%clk 0:14:23.4]} 48. h4 {[%clk 0:11:37.5]} 48...
gxh4+ {[%clk 0:14:22.8]} 49. Kg2 {[%clk 0:11:41.7]} 49... Kg4 {[%clk 0:14:25.2]}
50. Kg1 {[%clk 0:11:45.6]} 50... Kg3 {[%clk 0:14:27.1]} 51. Kh1 {[%clk
0:11:49.7]} 51... Ra1# {[%clk 0:14:30.4]} 0-1

[Event "Live Chess"]
[Site "Chess.com"]
[Date "2023.09.16"]
[Round "-"]
[White "Ilisunesp"]
[Black "isiskrakatoa"]
[Result "1-0"]
[WhiteElo "1554"]
[BlackElo "562"]
[TimeControl "900+5"]
[EndTime "15:55:37 PDT"]
[Termination "Ilisunesp venceu por xeque-mate"]

1. e4 {[%clk 0:15:04.8]} 1... e5 {[%clk 0:14:56.8]} 2. Nf3 {[%clk 0:15:07.3]}
2... Nc6 {[%clk 0:14:53.9]} 3. Nc3 {[%clk 0:15:11.2]} 3... Bb4 {[%clk
0:14:52.2]} 4. a3 {[%clk 0:15:14.4]} 4... Bxc3 {[%clk 0:14:55.7]} 5. bxc3 {[%clk
0:15:19.3]} 5... Nf6 {[%clk 0:14:58.4]} 6. d3 {[%clk 0:15:22.8]} 6... d5 {[%clk
0:14:59.7]} 7. exd5 {[%clk 0:15:25.8]} 7... Nxd5 {[%clk 0:15:00.5]} 8. Bd2
{[%clk 0:15:27.6]} 8... O-O {[%clk 0:14:46.7]} 9. c4 {[%clk 0:15:31.5]} 9... Nf4
{[%clk 0:14:24.6]} 10. Bxf4 {[%clk 0:15:29.1]} 10... exf4 {[%clk 0:14:25.7]} 11.
Qd2 {[%clk 0:15:33.8]} 11... Qe7+ {[%clk 0:14:27.2]} 12. Be2 {[%clk 0:15:37.4]}
12... Re8 {[%clk 0:14:28]} 13. Kf1 {[%clk 0:15:40.5]} 13... Bg4 {[%clk
0:14:12.6]} 14. Re1 {[%clk 0:15:42.6]} 14... Bxf3 {[%clk 0:14:15.1]} 15. Bxf3
{[%clk 0:15:46.1]} 15... Nd4 {[%clk 0:14:16.7]} 16. Rxe7 {[%clk 0:15:48.4]}
16... Rxe7 {[%clk 0:14:18.1]} 17. h3 {[%clk 0:15:38.2]} 17... Nxf3 {[%clk
0:14:10.7]} 18. gxf3 {[%clk 0:15:42.1]} 18... Rae8 {[%clk 0:14:11.1]} 19. Kg2
{[%clk 0:15:40.3]} 19... g6 {[%clk 0:14:14.5]} 20. Qxf4 {[%clk 0:15:44.4]} 20...
Re2 {[%clk 0:14:13.2]} 21. Rc1 {[%clk 0:15:44.2]} 21... a6 {[%clk 0:14:02.8]}
22. Qxc7 {[%clk 0:15:48.1]} 22... b5 {[%clk 0:14:05.4]} 23. cxb5 {[%clk
0:15:51.8]} 23... axb5 {[%clk 0:14:09.1]} 24. Qc6 {[%clk 0:15:55.9]} 24... R2e5
{[%clk 0:14:06.8]} 25. f4 {[%clk 0:15:54.9]} 25... Rf5 {[%clk 0:14:08.4]} 26.
Qxe8+ {[%clk 0:15:58.3]} 26... Kg7 {[%clk 0:14:11.1]} 27. Qe5+ {[%clk
0:16:00.6]} 27... f6 {[%clk 0:14:09.6]} 28. Qxf5 {[%clk 0:16:04.6]} 28... gxf5
{[%clk 0:14:13.3]} 29. Rb1 {[%clk 0:16:09.3]} 29... Kh6 {[%clk 0:14:10.6]} 30.
Rxb5 {[%clk 0:16:13.8]} 30... Kh5 {[%clk 0:14:14]} 31. Rxf5+ {[%clk 0:16:13.2]}
31... Kh4 {[%clk 0:14:15.7]} 32. Rxf6 {[%clk 0:16:06.7]} 32... h6 {[%clk
0:14:13.9]} 33. Rxh6# {[%clk 0:16:07.1]} 1-0

[Event "Live Chess"]
[Site "Chess.com"]
[Date "2023.09.16"]
[Round "-"]
[White "MagnusCarlos1996"]
[Black "Ilisunesp"]
[Result "1-0"]
[WhiteElo "995"]
[BlackElo "1531"]
[TimeControl "900+5"]
[EndTime "16:00:01 PDT"]
[Termination "MagnusCarlos1996 venceu por desistência"]

1. e4 {[%clk 0:15:01.7]} 1... Nc6 {[%clk 0:15:02.3]} 2. Nf3 {[%clk 0:15:02.8]}
2... e6 {[%clk 0:15:06.6]} 3. d4 {[%clk 0:15:03.6]} 3... d5 {[%clk 0:15:09.8]}
4. e5 {[%clk 0:15:07.8]} 4... Bb4+ {[%clk 0:15:12.9]} 5. c3 {[%clk 0:15:11.7]}
5... Ba5 {[%clk 0:15:16.8]} 6. Bb5 {[%clk 0:15:03.4]} 6... a6 {[%clk 0:15:19.7]}
7. Bxc6+ {[%clk 0:15:03]} 7... bxc6 {[%clk 0:15:23.4]} 8. Qa4 {[%clk 0:15:06.1]}
8... Bb6 {[%clk 0:15:12.1]} 9. O-O {[%clk 0:14:55.9]} 9... Ne7 {[%clk
0:15:14.1]} 10. Bg5 {[%clk 0:14:57.3]} 10... O-O {[%clk 0:15:14.7]} 11. Nbd2
{[%clk 0:14:51.5]} 11... Bd7 {[%clk 0:15:14.2]} 12. Qa3 {[%clk 0:14:36.9]} 12...
Re8 {[%clk 0:15:14.5]} 13. Nb3 {[%clk 0:14:31.3]} 13... h6 {[%clk 0:14:53.5]}
14. Bh4 {[%clk 0:14:27.9]} 14... f6 {[%clk 0:13:53]} 15. exf6 {[%clk 0:14:26.3]}
15... Nf5 {[%clk 0:13:55.1]} 16. f7+ {[%clk 0:14:25.7]} 1-0

[Event "Live Chess"]
[Site "Chess.com"]
[Date "2023.09.16"]
[Round "-"]
[White "advRafael"]
[Black "gustavogarcia10"]
[Result "1-0"]
[WhiteElo "1697"]
[BlackElo "459"]
[TimeControl "900+5"]
[EndTime "16:02:10 PDT"]
[Termination "advRafael venceu por desistência"]

1. c4 {[%clk 0:15:01]} 1... e5 {[%clk 0:15:02.3]} 2. Nc3 {[%clk 0:15:04.4]} 2...
Nf6 {[%clk 0:15:01.5]} 3. g3 {[%clk 0:15:06]} 3... Bb4 {[%clk 0:15:01.7]} 4. Bg2
{[%clk 0:15:08.9]} 4... Bxc3 {[%clk 0:15:04.4]} 5. bxc3 {[%clk 0:15:12.2]} 5...
O-O {[%clk 0:15:08.8]} 6. Nf3 {[%clk 0:15:15.5]} 6... Re8 {[%clk 0:15:10.3]} 7.
O-O {[%clk 0:15:17.1]} 7... d5 {[%clk 0:15:03.6]} 8. cxd5 {[%clk 0:15:19.2]}
8... Qxd5 {[%clk 0:15:02.2]} 9. Qc2 {[%clk 0:15:15.7]} 9... e4 {[%clk
0:14:51.1]} 10. Nd4 {[%clk 0:15:18.4]} 10... c5 {[%clk 0:14:31.9]} 11. Nb3
{[%clk 0:15:19.8]} 11... Bf5 {[%clk 0:14:14.1]} 12. d3 {[%clk 0:15:02]} 12...
Qd7 {[%clk 0:14:08.5]} 13. Nxc5 {[%clk 0:14:55.9]} 13... exd3 {[%clk 0:14:08.8]}
14. Nxd7 {[%clk 0:14:26.2]} 14... dxc2 {[%clk 0:14:10.2]} 15. Nxf6+ {[%clk
0:14:29.8]} 15... gxf6 {[%clk 0:14:12.1]} 16. Bxb7 {[%clk 0:14:33]} 16... Bh3
{[%clk 0:14:11.8]} 17. Re1 {[%clk 0:14:33.4]} 17... Nc6 {[%clk 0:13:45.8]} 18.
Bxc6 {[%clk 0:14:33.1]} 18... f5 {[%clk 0:13:30.9]} 19. Bf4 {[%clk 0:14:22.8]}
19... Bg4 {[%clk 0:13:23.8]} 20. Rac1 {[%clk 0:14:06.4]} 20... Rxe2 {[%clk
0:13:27.1]} 21. Rxe2 {[%clk 0:14:09.9]} 21... Bxe2 {[%clk 0:13:30.6]} 22. Bxa8
{[%clk 0:14:13.1]} 22... Bd3 {[%clk 0:13:29.9]} 23. Bd5 {[%clk 0:14:08.7]} 23...
a6 {[%clk 0:13:30.2]} 24. Bb3 {[%clk 0:14:12.2]} 24... a5 {[%clk 0:13:31.2]} 25.
Bxc2 {[%clk 0:14:15.4]} 25... Bxc2 {[%clk 0:13:35.8]} 26. Rxc2 {[%clk
0:14:19.3]} 26... a4 {[%clk 0:13:40.3]} 27. c4 {[%clk 0:14:21.5]} 1-0

[Event "Live Chess"]
[Site "Chess.com"]
[Date "2023.09.16"]
[Round "-"]
[White "isiskrakatoa"]
[Black "MagnusCarlos1996"]
[Result "0-1"]
[WhiteElo "553"]
[BlackElo "1012"]
[TimeControl "900+5"]
[EndTime "16:04:46 PDT"]
[Termination "MagnusCarlos1996 venceu por xeque-mate"]

1. e4 {[%clk 0:15:00.3]} 1... e5 {[%clk 0:15:03.9]} 2. Nf3 {[%clk 0:15:03.2]}
2... Nf6 {[%clk 0:15:07.5]} 3. Nxe5 {[%clk 0:15:06.5]} 3... d6 {[%clk
0:15:11.5]} 4. Nf3 {[%clk 0:14:51.9]} 4... Nxe4 {[%clk 0:15:14.7]} 5. d3 {[%clk
0:14:54.2]} 5... Nf6 {[%clk 0:15:17.5]} 6. Be2 {[%clk 0:14:55.3]} 6... Be7
{[%clk 0:15:21.6]} 7. Bg5 {[%clk 0:14:51.7]} 7... O-O {[%clk 0:15:24.3]} 8. Bxf6
{[%clk 0:14:55.4]} 8... Bxf6 {[%clk 0:15:28.4]} 9. O-O {[%clk 0:14:58.5]} 9...
Bxb2 {[%clk 0:15:31.6]} 10. Nbd2 {[%clk 0:14:36.7]} 10... Bxa1 {[%clk 0:15:35]}
11. Qxa1 {[%clk 0:14:40]} 11... Nc6 {[%clk 0:15:36.5]} 12. Nd4 {[%clk
0:14:29.9]} 12... Nxd4 {[%clk 0:15:31.2]} 13. Qxd4 {[%clk 0:14:32.5]} 13... Re8
{[%clk 0:15:27]} 14. Bg4 {[%clk 0:14:28.1]} 14... Bxg4 {[%clk 0:15:29]} 15. Qxg4
{[%clk 0:14:31.2]} 15... Qf6 {[%clk 0:15:26.3]} 16. Ne4 {[%clk 0:14:25.1]} 16...
Qe6 {[%clk 0:15:14.9]} 17. Ng5 {[%clk 0:14:27.9]} 17... Qxg4 {[%clk 0:15:18.5]}
18. Ne4 {[%clk 0:14:27.1]} 18... Rxe4 {[%clk 0:15:21.6]} 19. dxe4 {[%clk
0:14:30.3]} 19... Re8 {[%clk 0:15:25.3]} 20. f3 {[%clk 0:14:30.4]} 20... Qe6
{[%clk 0:15:27.5]} 21. Re1 {[%clk 0:14:31.8]} 21... Qxa2 {[%clk 0:15:31]} 22. f4
{[%clk 0:14:32.5]} 22... Qxc2 {[%clk 0:15:34.1]} 23. e5 {[%clk 0:14:36.4]} 23...
dxe5 {[%clk 0:15:37.3]} 24. fxe5 {[%clk 0:14:40]} 24... Qc5+ {[%clk 0:15:38.1]}
25. Kf1 {[%clk 0:14:38.2]} 25... Rxe5 {[%clk 0:15:42.1]} 26. Rd1 {[%clk
0:14:38]} 26... Qe3 {[%clk 0:15:42]} 27. Rd8+ {[%clk 0:14:41.4]} 27... Re8
{[%clk 0:15:46]} 28. Rxe8+ {[%clk 0:14:44.5]} 28... Qxe8 {[%clk 0:15:49.9]} 29.
g4 {[%clk 0:14:47.7]} 29... c5 {[%clk 0:15:54.2]} 30. h4 {[%clk 0:14:47.5]}
30... c4 {[%clk 0:15:58.4]} 31. g5 {[%clk 0:14:51.5]} 31... c3 {[%clk
0:16:02.8]} 32. h5 {[%clk 0:14:56]} 32... c2 {[%clk 0:16:06.7]} 33. g6 {[%clk
0:15:00.3]} 33... c1=Q+ {[%clk 0:16:10.4]} 34. Kf2 {[%clk 0:15:02.9]} 34... Qd2+
{[%clk 0:16:14.7]} 35. Kf3 {[%clk 0:15:06.8]} 35... Qee3+ {[%clk 0:16:18.6]} 36.
Kg4 {[%clk 0:15:10.2]} 36... Qdd4+ {[%clk 0:16:22.8]} 37. Kf5 {[%clk 0:15:14]}
37... Qee5# {[%clk 0:16:27]} 0-1

[Event "Live Chess"]
[Site "Chess.com"]
[Date "2023.09.16"]
[Round "-"]
[White "Orionchess"]
[Black "MatheusMPD"]
[Result "1-0"]
[WhiteElo "1793"]
[BlackElo "1609"]
[TimeControl "900+5"]
[EndTime "16:05:33 PDT"]
[Termination "Orionchess venceu por desistência"]

1. d4 {[%clk 0:15:01.1]} 1... Nf6 {[%clk 0:15:03.2]} 2. e3 {[%clk 0:15:05.3]}
2... g6 {[%clk 0:15:06.7]} 3. Bd3 {[%clk 0:15:09.7]} 3... Bg7 {[%clk 0:15:10.1]}
4. Nd2 {[%clk 0:15:13.7]} 4... d6 {[%clk 0:15:11]} 5. f4 {[%clk 0:15:17.3]} 5...
O-O {[%clk 0:15:14.2]} 6. Ngf3 {[%clk 0:15:21.7]} 6... Bg4 {[%clk 0:15:16.5]} 7.
c3 {[%clk 0:15:26.6]} 7... c5 {[%clk 0:15:13]} 8. O-O {[%clk 0:15:31.5]} 8...
cxd4 {[%clk 0:15:13.5]} 9. h3 {[%clk 0:15:36.4]} 9... Bxf3 {[%clk 0:15:04]} 10.
cxd4 {[%clk 0:15:41.3]} 10... Bc6 {[%clk 0:14:44.7]} 11. e4 {[%clk 0:15:37.6]}
11... Nh5 {[%clk 0:14:07.1]} 12. Nf3 {[%clk 0:15:36.6]} 12... Nf6 {[%clk
0:13:58.9]} 13. Qe2 {[%clk 0:15:37.4]} 13... Qb6 {[%clk 0:13:51]} 14. Be3 {[%clk
0:15:34.2]} 14... Qc7 {[%clk 0:13:17.8]} 15. d5 {[%clk 0:15:33.7]} 15... Bd7
{[%clk 0:13:13.4]} 16. Rac1 {[%clk 0:15:36.1]} 16... Qd8 {[%clk 0:13:00.7]} 17.
Rc2 {[%clk 0:15:28]} 17... Na6 {[%clk 0:12:59.9]} 18. a3 {[%clk 0:15:29.5]}
18... Nc5 {[%clk 0:12:58]} 19. Bxc5 {[%clk 0:15:25.2]} 19... dxc5 {[%clk
0:12:59.9]} 20. Bc4 {[%clk 0:15:24.1]} 20... Nh5 {[%clk 0:12:04.2]} 21. Rf2
{[%clk 0:15:10.5]} 21... Nxf4 {[%clk 0:11:46]} 22. Qe3 {[%clk 0:15:07.1]} 22...
Nh5 {[%clk 0:11:34.9]} 23. e5 {[%clk 0:14:56.8]} 23... Bf5 {[%clk 0:10:05.7]}
24. Rce2 {[%clk 0:14:55]} 24... Ng3 {[%clk 0:09:57.9]} 25. Re1 {[%clk
0:14:55.8]} 25... Ne4 {[%clk 0:09:57.7]} 26. Rff1 {[%clk 0:14:53.4]} 26... a6
{[%clk 0:09:24.7]} 27. g4 {[%clk 0:14:43.9]} 27... Ng3 {[%clk 0:08:19.6]} 28.
Rf2 {[%clk 0:14:38.3]} 28... Be4 {[%clk 0:08:12.8]} 29. Ng5 {[%clk 0:14:22.1]}
29... Bxe5 {[%clk 0:06:57.1]} 30. Nxe4 {[%clk 0:14:17.5]} 30... Nxe4 {[%clk
0:06:56.7]} 31. Qxe4 {[%clk 0:14:17.9]} 31... Bd4 {[%clk 0:07:01.3]} 32. Kg2
{[%clk 0:14:18.7]} 32... Bxf2 {[%clk 0:07:03.7]} 33. Kxf2 {[%clk 0:14:21.8]}
33... b5 {[%clk 0:07:08.2]} 34. Bf1 {[%clk 0:14:20.7]} 34... Re8 {[%clk
0:06:06.6]} 35. Bg2 {[%clk 0:13:46.6]} 35... e6 {[%clk 0:05:48.8]} 36. dxe6
{[%clk 0:13:41.6]} 36... Rxe6 {[%clk 0:05:43]} 37. Qxa8 {[%clk 0:13:35.6]} 1-0

[Event "Live Chess"]
[Site "Chess.com"]
[Date "2023.09.16"]
[Round "-"]
[White "nicolascristiano"]
[Black "mariabeatrizandrade"]
[Result "1-0"]
[WhiteElo "1546"]
[BlackElo "650"]
[TimeControl "900+5"]
[EndTime "16:07:01 PDT"]
[Termination "nicolascristiano venceu por desistência"]

1. d4 {[%clk 0:15:01.5]} 1... Nf6 {[%clk 0:15:01.3]} 2. Nf3 {[%clk 0:15:04.7]}
2... d5 {[%clk 0:14:57.4]} 3. Bg5 {[%clk 0:15:06.4]} 3... e6 {[%clk 0:14:56.6]}
4. Nbd2 {[%clk 0:15:09.3]} 4... c5 {[%clk 0:14:55.4]} 5. e3 {[%clk 0:15:12.2]}
5... Nbd7 {[%clk 0:14:49.2]} 6. c3 {[%clk 0:15:13.9]} 6... Be7 {[%clk 0:14:52]}
7. Bd3 {[%clk 0:14:55.9]} 7... O-O {[%clk 0:14:45.4]} 8. O-O {[%clk 0:14:49.5]}
8... c4 {[%clk 0:14:39.6]} 9. Bc2 {[%clk 0:14:52.1]} 9... Qb6 {[%clk 0:14:38.1]}
10. Rb1 {[%clk 0:14:28.1]} 10... Re8 {[%clk 0:14:35.8]} 11. Bxf6 {[%clk
0:14:17.8]} 11... Bxf6 {[%clk 0:14:38.4]} 12. e4 {[%clk 0:14:22]} 12... Nf8
{[%clk 0:14:40.7]} 13. e5 {[%clk 0:14:21.7]} 13... Be7 {[%clk 0:14:38.6]} 14.
Re1 {[%clk 0:14:18.9]} 14... f6 {[%clk 0:14:20.4]} 15. Nf1 {[%clk 0:14:20.5]}
15... Qc6 {[%clk 0:14:04.1]} 16. exf6 {[%clk 0:14:12.4]} 16... Bxf6 {[%clk
0:14:06.9]} 17. Ne5 {[%clk 0:14:12.8]} 17... Qc7 {[%clk 0:13:23.2]} 18. Qh5
{[%clk 0:14:07.4]} 18... Bxe5 {[%clk 0:11:46.3]} 19. Rxe5 {[%clk 0:12:54.8]}
19... Qf7 {[%clk 0:10:23.9]} 20. Qh4 {[%clk 0:11:27.8]} 20... h6 {[%clk
0:10:00.1]} 21. Qg3 {[%clk 0:11:04]} 21... Ng6 {[%clk 0:09:53.1]} 22. Bxg6
{[%clk 0:11:05.6]} 1-0

[Event "Live Chess"]
[Site "Chess.com"]
[Date "2023.09.16"]
[Round "-"]
[White "generalhuxx99silva"]
[Black "ThgDomingues"]
[Result "1-0"]
[WhiteElo "1514"]
[BlackElo "1497"]
[TimeControl "900+5"]
[EndTime "16:07:29 PDT"]
[Termination "generalhuxx99silva venceu por xeque-mate"]

1. c4 {[%clk 0:15:02.2]} 1... g6 {[%clk 0:15:01.2]} 2. Nc3 {[%clk 0:15:05.2]}
2... Bg7 {[%clk 0:15:03.8]} 3. Nf3 {[%clk 0:15:01.9]} 3... d6 {[%clk 0:15:05.9]}
4. g3 {[%clk 0:15:01.9]} 4... Nf6 {[%clk 0:15:08.4]} 5. Bg2 {[%clk 0:15:02.4]}
5... O-O {[%clk 0:15:09.5]} 6. O-O {[%clk 0:15:04.7]} 6... Nc6 {[%clk
0:14:46.5]} 7. a4 {[%clk 0:14:58.5]} 7... a5 {[%clk 0:14:08.1]} 8. d4 {[%clk
0:14:54.4]} 8... Nb4 {[%clk 0:13:48.1]} 9. e4 {[%clk 0:14:32.7]} 9... Bg4 {[%clk
0:13:08.9]} 10. h3 {[%clk 0:14:11.2]} 10... Bc8 {[%clk 0:12:13.7]} 11. Re1
{[%clk 0:13:52.6]} 11... Rb8 {[%clk 0:11:54.6]} 12. e5 {[%clk 0:13:46.1]} 12...
dxe5 {[%clk 0:11:18]} 13. Nxe5 {[%clk 0:13:51]} 13... Nd7 {[%clk 0:11:07.9]} 14.
Qe2 {[%clk 0:12:35.3]} 14... Nxe5 {[%clk 0:10:53.1]} 15. dxe5 {[%clk 0:12:40.2]}
15... b6 {[%clk 0:10:08.8]} 16. Rd1 {[%clk 0:12:32.1]} 16... Qe8 {[%clk
0:09:23.8]} 17. Bg5 {[%clk 0:11:58.7]} 17... h6 {[%clk 0:08:36.3]} 18. Bf4
{[%clk 0:11:56.3]} 18... Bb7 {[%clk 0:08:19]} 19. Bxb7 {[%clk 0:11:48]} 19...
Rxb7 {[%clk 0:08:18.2]} 20. Nd5 {[%clk 0:11:52.2]} 20... e6 {[%clk 0:06:09.7]}
21. Nf6+ {[%clk 0:10:44]} 21... Bxf6 {[%clk 0:06:04.2]} 22. exf6 {[%clk
0:10:48.9]} 22... g5 {[%clk 0:05:25.2]} 23. Qh5 {[%clk 0:09:51.4]} 23... e5
{[%clk 0:03:27]} 24. Qxh6 {[%clk 0:09:50.1]} 24... exf4 {[%clk 0:02:59.9]} 25.
Qg7# {[%clk 0:09:50.2]} 1-0

[Event "Live Chess"]
[Site "Chess.com"]
[Date "2023.09.16"]
[Round "-"]
[White "felipeurbano"]
[Black "ppsobral"]
[Result "0-1"]
[WhiteElo "1207"]
[BlackElo "1048"]
[TimeControl "900+5"]
[EndTime "16:11:28 PDT"]
[Termination "ppsobral venceu por xeque-mate"]

1. e4 {[%clk 0:14:45.7]} 1... c5 {[%clk 0:15:00.5]} 2. Bc4 {[%clk 0:14:44.3]}
2... e6 {[%clk 0:15:02.7]} 3. c3 {[%clk 0:14:45.1]} 3... d5 {[%clk 0:15:04.6]}
4. Bb5+ {[%clk 0:14:38.9]} 4... Bd7 {[%clk 0:14:51.1]} 5. Bxd7+ {[%clk
0:14:19.1]} 5... Qxd7 {[%clk 0:14:51.2]} 6. d4 {[%clk 0:14:15.7]} 6... Nc6
{[%clk 0:14:38]} 7. exd5 {[%clk 0:13:51.9]} 7... Qxd5 {[%clk 0:14:30.1]} 8. Nf3
{[%clk 0:13:52.7]} 8... Qe4+ {[%clk 0:13:42.9]} 9. Be3 {[%clk 0:13:50.5]} 9...
Rd8 {[%clk 0:13:28.6]} 10. O-O {[%clk 0:13:51]} 10... e5 {[%clk 0:13:00.5]} 11.
Nbd2 {[%clk 0:13:43.7]} 11... Qd5 {[%clk 0:12:29.1]} 12. Nb3 {[%clk 0:13:37.1]}
12... b6 {[%clk 0:12:14.1]} 13. Nxe5 {[%clk 0:13:32.3]} 13... Nxe5 {[%clk
0:12:01.9]} 14. dxe5 {[%clk 0:13:07.3]} 14... Qxe5 {[%clk 0:11:48.7]} 15. Qf3
{[%clk 0:13:06.5]} 15... Bd6 {[%clk 0:11:05.5]} 16. g3 {[%clk 0:13:06.8]} 16...
Ne7 {[%clk 0:10:30.4]} 17. Bf4 {[%clk 0:12:55.8]} 17... Qf6 {[%clk 0:09:57.7]}
18. Rfe1 {[%clk 0:12:49]} 18... O-O {[%clk 0:09:31.6]} 19. Rad1 {[%clk
0:12:28.9]} 19... Bxf4 {[%clk 0:09:05.1]} 20. Rxd8 {[%clk 0:12:24]} 20... Rxd8
{[%clk 0:09:05.7]} 21. gxf4 {[%clk 0:12:10.6]} 21... Nd5 {[%clk 0:08:33.7]} 22.
Rd1 {[%clk 0:12:08.5]} 22... Qf5 {[%clk 0:07:36.2]} 23. Nc1 {[%clk 0:11:51.7]}
23... h6 {[%clk 0:06:35]} 24. Ne2 {[%clk 0:11:51.5]} 24... g5 {[%clk 0:06:24.8]}
25. c4 {[%clk 0:11:50.8]} 25... g4 {[%clk 0:05:38]} 26. Rxd5 {[%clk 0:11:52.2]}
26... Rxd5 {[%clk 0:05:37.1]} 27. Qxd5 {[%clk 0:11:53.2]} 27... Qb1+ {[%clk
0:05:19.1]} 28. Kg2 {[%clk 0:11:54.3]} 28... Qxb2 {[%clk 0:05:09.4]} 29. Ng3
{[%clk 0:11:39.3]} 29... Qc1 {[%clk 0:04:10.3]} 30. Qd8+ {[%clk 0:11:32.9]}
30... Kh7 {[%clk 0:04:06.5]} 31. Qd3+ {[%clk 0:11:31.4]} 31... Kg8 {[%clk
0:03:54.8]} 32. Qd8+ {[%clk 0:11:27.6]} 32... Kh7 {[%clk 0:03:56.3]} 33. Qf6
{[%clk 0:11:28.8]} 33... Qxc4 {[%clk 0:03:24.4]} 34. Nh5 {[%clk 0:11:28.2]}
34... Qd5+ {[%clk 0:03:19]} 35. Kg3 {[%clk 0:10:57.5]} 35... Qxh5 {[%clk
0:03:21.3]} 36. Qh4 {[%clk 0:10:47.1]} 36... Qxh4+ {[%clk 0:03:18.1]} 37. Kxh4
{[%clk 0:10:50.6]} 37... c4 {[%clk 0:03:09.2]} 38. Kxg4 {[%clk 0:10:47.4]} 38...
c3 {[%clk 0:03:12]} 39. Kf3 {[%clk 0:10:47]} 39... c2 {[%clk 0:03:13.2]} 40. Kg3
{[%clk 0:07:47.9]} 40... c1=Q {[%clk 0:03:13.8]} 41. a4 {[%clk 0:07:33.7]} 41...
Qg1+ {[%clk 0:03:07.6]} 42. Kf3 {[%clk 0:07:35.2]} 42... Qxh2 {[%clk 0:03:08.9]}
43. Ke4 {[%clk 0:07:38.3]} 43... Qxf2 {[%clk 0:03:09.9]} 44. a5 {[%clk
0:07:40.5]} 44... bxa5 {[%clk 0:03:11.2]} 45. Ke5 {[%clk 0:07:42.3]} 45... a4
{[%clk 0:03:11.1]} 46. f5 {[%clk 0:07:45.9]} 46... a3 {[%clk 0:03:10.7]} 47. Kf6
{[%clk 0:07:47.8]} 47... Kg8 {[%clk 0:02:51.1]} 48. Ke5 {[%clk 0:07:31]} 48...
a2 {[%clk 0:02:51.2]} 49. Kf6 {[%clk 0:06:58.7]} 49... a1=Q+ {[%clk 0:02:53]}
50. Ke7 {[%clk 0:07:00.8]} 50... Qe5+ {[%clk 0:02:50]} 51. Kd8 {[%clk
0:06:59.4]} 51... Qfd4+ {[%clk 0:02:47.7]} 52. Kc8 {[%clk 0:07:02.9]} 52...
Qec5+ {[%clk 0:02:45.5]} 53. Kb7 {[%clk 0:07:01.5]} 53... Qd7+ {[%clk
0:02:42.6]} 54. Ka6 {[%clk 0:06:58.5]} 54... Qdb5# {[%clk 0:02:43.7]} 0-1